[Event "Germany Countries-chT Youth 2022"]
[Site "Wiesbaden"]
[Date "2022.10.02"]
[Round "3"]
[White "Bornholdt, Joa Max"]
[Black "Lutsko, Artem"]
[Result "1/2-1/2"]
[ECO "A46"]
[WhiteElo "2196"]
[BlackElo "2431"]
[Annotator "TA"]
[PlyCount "62"]
[EventDate "2022.09.28"]
[EventType "team-tourn"]
[EventRounds "7"]
[EventCountry "GER"]
[SourceTitle "playchess.com"]
[Source "ChessBase"]
[SourceQuality "1"]
[TimeControl "40/5400+30:1800+30"]

{[%evp 14,62,16,0,0,0,0,0,10,-8,54,17,22,27,60,58,65,64,48,39,68,40,92,-30,-6,-35,-28,-54,0,-9,0,0,0,0,0,0,0,0,0,-6,-5,-17,-7,-7,0,-14,-7,-8,0,-20,-14]} 1. d4 {[%emt 0:00:09]} Nf6 {[%emt 0:00:04]} 2. Nf3 {[%emt 0:00:21]} e6 {[%emt 0:01:50][%cal Be7e6,Be6e5][%mdl 32]} 3. g3 {[%emt 0:00:19]} d5 {[%emt 0:04:25]} 4. Bg2 {[%emt 0:00:23]} c5 {[%emt 0:04:59]} 5. O-O {[%emt 0:00:17]} cxd4 {[%emt 0:00:27]} 6. Nxd4 {[%emt 0:00:20]} e5 {[%emt 0:00:19]} 7. Nb3 {[%emt 0:00:13]} Be6 {[%emt 0:01:54]} 8. Nc3 {[%emt 0:01:00]} Be7 {[%emt 0:01:27] D02: 1 d4 d5 2 Nf3 sidelines, including 2...Nf6 3 g3 and 2...Nf6 3 Bf4.} 9. Bg5 {[%emt 0:09:11] next Bxf6 is good for White.} Nbd7 {[%emt 0:00:04]} 10. f4 {[%emt 0:03:00]} exf4 {[%emt 0:04:22]} ({But not} 10... Qb6+ 11. Kh1 $14) 11. gxf4 {[%emt 0:00:54] [#] f5 is the strong threat.} g6 {[%emt 0:02:19]} (11... Nb6 $11) 12. Kh1 {[%emt 0:05:15]} (12. Nxd5 Nxd5 13. Bxd5 Bxg5 14. Bxe6 fxe6 $11) 12... h6 {[%emt 0:01:35]} 13. Bh4 {[%emt 0:02:02] [#]} Nb6 $146 {[%emt 0:06:07]} ({Predecessor:} 13... Ng4 14. Bg3 O-O 15. Nxd5 Bxd5 16. Qxd5 Ne3 17. Qxb7 Nxf1 18. Rxf1 Nb6 19. f5 Rc8 {0-1 (46) Salimova,N (2397)-Gara,T (2383) Tornelo INT 2020}) 14. Nd4 {[%emt 0:08:59]} Bg4 {[%emt 0:08:13]} 15. Qd3 {[%emt 0:06:33]} O-O {[%emt 0:00:09]} 16. Rg1 {[%emt 0:08:46] Strongly threatening Bf3.} Kh8 {[%emt 0:11:42][%cal Of6e4]} 17. Rad1 {[%emt 0:06:00] White is much more active.} Rc8 {[%emt 0:05:43]} (17... Kh7 $14) 18. h3 {[%emt 0:10:22]} (18. Bh3 $16 Bd7 19. Bxd7 Qxd7 20. Nf3) 18... Bh5 $11 {[%emt 0:03:48]} 19. Nf3 {[%emt 0:04:59]} Nc4 {[%emt 0:01:47]} 20. Qd4 {[%emt 0:07:19][%cal Rc3d5]} Kh7 {[%emt 0:00:22]} (20... Kg8 $15) 21. b3 $132 {[%emt 0:04:16][%mdl 2048] White has counterplay. The position is equal.} ({Reject} 21. Qxa7 Bxf3 22. exf3 Nxb2 23. Bxf6 Bxf6 24. Rxd5 Qc7 $15) 21... Nd6 {[%emt 0:00:45]} (21... Nb6 {feels hotter.} 22. a4 Ng8 23. Bxe7 Nxe7 24. Qd2 a6) 22. Nxd5 {[%emt 0:00:48]} Nxd5 {[%emt 0:01:16]} 23. Qxd5 {[%emt 0:01:18] [#] aiming for Bxe7.} Bxh4 {[%emt 0:01:43][%cal Be7h4,Bh4g3,Bg3f4][%mdl 32]} 24. Qxd6 {[%emt 0:00:06]} Qxd6 {[%emt 0:00:58]} 25. Rxd6 {[%emt 0:00:27]} Bg3 {[%emt 0:00:05]} 26. c4 {[%emt 0:02:50]} Rc7 {[%emt 0:05:00] Prevents Rd7.} 27. Rgd1 {[%emt 0:00:36]} Bxf4 {[%emt 0:00:05]} 28. Rd7 {[%emt 0:00:22]} Rfc8 {[%emt 0:00:32]} 29. Kg1 {[%emt 0:01:34]} Bg3 {[%emt 0:05:20]} 30. Kf1 {[%emt 0:00:39]} Kg7 {[%emt 0:02:40]} 31. R1d5 {[%emt 0:02:18]} Bxf3 {[%emt 0:17:47] Weighted Error Value: White=0.16 (very precise) /Black=0.12 (very precise)} 1/2-1/2

[Event "Germany Countries-chT Youth 2022"]
[Site "Wiesbaden"]
[Date "2022.10.02"]
[Round "3"]
[White "Hommer, Jeremy"]
[Black "Stork, Oliver"]
[Result "0-1"]
[ECO "B51"]
[WhiteElo "2184"]
[BlackElo "2315"]
[Annotator "TA"]
[PlyCount "90"]
[EventDate "2022.09.28"]
[EventType "team-tourn"]
[EventRounds "7"]
[EventCountry "GER"]
[SourceTitle "playchess.com"]
[Source "ChessBase"]
[SourceQuality "1"]
[TimeControl "40/5400+30:1800+30"]

{[%evp 9,90,14,14,5,10,20,9,13,14,10,0,0,0,9,5,6,18,0,6,-2,-9,0,19,-8,-8,-6,0,0,0,0,0,-195,-196,-253,-239,-260,-250,-420,-296,-300,-297,-284,-290,-291,-280,-424,-466,-454,-412,-433,-391,-385,-394,-379,-380,-371,-331,-338,-289,-276,-278,-276,-186,-308,-286,-299,-281,-298,-244,-330,-330,-330,-327,-385,-385,-525,-511,-1252,-819,-1762,-1672,-865,-797]} 1. e4 {[%emt 0:00:04]} c5 {[%emt 0:00:07]} 2. Nf3 {[%emt 0:00:06]} d6 {[%emt 0:00:08]} 3. Bb5+ {[%emt 0:00:11]} Nd7 {[%emt 0:00:07]} 4. O-O {[%emt 0:00:14]} a6 {[%emt 0:00:14]} 5. Bd3 {[%emt 0:00:07]} Ngf6 {[%emt 0:00:16]} 6. Re1 {[%emt 0:00:21] B51: Sicilian: Moscow Variation (3 Bb5+) without 3...Bd7.} e6 {[%emt 0:00:20]} 7. c3 {[%emt 0:00:06]} b5 {[%emt 0:00:11]} 8. Bc2 {[%emt 0:00:13] The position is equal.} c4 {[%emt 0:00:38]} 9. d4 {[%emt 0:00:13]} cxd3 $1 {[%emt 0:00:09]} 10. Qxd3 {[%emt 0:00:06] 10.Bxd3 is the hot move.} Bb7 {[%emt 0:00:47]} 11. a4 {[%emt 0:00:19]} Nc5 {[%emt 0:00:24][%csl LRd3,LRe4]} 12. Qe2 {[%emt 0:00:06]} bxa4 {[%emt 0:00:23]} 13. Be3 {[%emt 0:00:16] [#] Hoping for Bxc5.} Nfd7 {[%emt 0:00:37]} ({Resist} 13... Ncxe4 14. Bxa4+ Nd7 15. Na3 $14) 14. Bxc5 {[%emt 0:01:29]} Nxc5 {[%emt 0:00:07]} 15. Rxa4 {[%emt 0:00:03]} g6 {[%emt 0:02:02]} (15... Be7 $5 {[%cal Rc5a4]}) 16. Rd1 {[%emt 0:01:47] aiming for Rad4.} Be7 {[%emt 0:00:09]} 17. Rad4 {[%emt 0:00:31] Black must now prevent b4.} O-O {[%emt 0:01:59]} 18. e5 {[%emt 0:00:28][%cal Re5d6]} Bxf3 {[%emt 0:00:29]} 19. Qxf3 {[%emt 0:00:04][%cal Re5d6]} d5 {[%emt 0:00:15] [#]} 20. Rg4 $146 {[%emt 0:02:05] [#] Black continues to play with concentration.} (20. c4 $1 $11) ({Predecessor:} 20. c4 f6 21. Qg3 fxe5 22. Rg4 e4 23. b4 Nd3 24. Bxd3 exd3 25. c5 Rf6 26. Rf4 Rxf4 27. Qxf4 {0-1 (71) Kriebel,T (2527)-Donchenko,A (2660) Tornelo INT 2021}) 20... Qb8 $19 {[%emt 0:05:21][%csl LRb2,LRe5]} 21. Qe2 {[%emt 0:19:58]} (21. b3 $142) 21... Qxb2 {[%emt 0:11:23]} 22. h4 {[%emt 0:00:25]} Ne4 {[%emt 0:18:21] Prevents Rd2.} 23. c4 $2 {[%emt 0:02:31]} (23. Re1 {might work better.}) 23... Rac8 {[%emt 0:04:45]} 24. Bd3 {[%emt 0:01:02]} Qxe2 {[%emt 0:00:36]} 25. Bxe2 {[%emt 0:00:21]} f5 {[%emt 0:19:27]} 26. exf6 {[%emt 0:04:28]} Rxf6 {[%emt 0:01:28]} ({Avoid the trap} 26... Nxf6 $2 27. cxd5 Nxg4 28. Bxg4 $19) 27. cxd5 {[%emt 0:07:00]} (27. Rxe4 $142 dxe4 28. Nc3) 27... Nxf2 {[%emt 0:02:09]} 28. d6 {[%emt 0:03:02]} Nxd1 {[%emt 0:08:25]} 29. dxe7 {[%emt 0:00:39]} Ne3 {[%emt 0:00:06]} 30. Re4 {[%emt 0:02:17]} Nd5 {[%emt 0:01:28]} 31. Bxa6 {[%emt 0:01:22]} Rc1+ {[%emt 0:00:38]} 32. Kh2 {[%emt 0:00:12]} Nxe7 {[%emt 0:03:05]} 33. Nd2 {[%emt 0:00:23]} Nc6 {[%emt 0:12:25]} 34. Nf3 {[%emt 0:00:51]} h6 {[%emt 0:00:24]} 35. Bb5 {[%emt 0:02:18]} Rc5 {[%emt 0:01:24]} 36. Ba4 {[%emt 0:00:42]} (36. Bxc6 $142 Rxc6 37. Ne5) 36... Kf8 {[%emt 0:01:08]} 37. Bxc6 {[%emt 0:01:43]} Rxc6 {[%emt 0:02:02][%mdl 4096] Endgame KRR-KRN} 38. Ne5 {[%emt 0:00:11]} Rd6 {[%emt 0:02:01]} 39. Ng4 {[%emt 0:00:29]} Rf5 {[%emt 0:00:44]} 40. Nxh6 {[%emt 0:00:08]} Rh5 {[%emt 0:01:47]} 41. Rf4+ {[%emt 0:30:08]} Kg7 {[%emt 0:30:12]} 42. Nf7 {[%emt 0:01:35]} Rdd5 {[%emt 0:00:21] Black is clearly winning.} 43. Kg3 {[%emt 0:02:12]} (43. Kg1 $142 e5 44. Rf1) 43... Rd3+ {[%emt 0:00:00]} 44. Kg4 {[%emt 0:00:00]} e5 {[%emt 0:00:00]} 45. Rf2 {[%emt 0:00:00]} Rf5 {[%emt 0:00:00] Weighted Error Value: White=0.51/Black=0.11 (very precise)} 0-1

[Event "Germany Countries-chT Youth 2022"]
[Site "Wiesbaden"]
[Date "2022.10.02"]
[Round "3"]
[White "Sidletskyi, Ivan"]
[Black "Jaskulski, Jan"]
[Result "1-0"]
[ECO "B56"]
[WhiteElo "2184"]
[BlackElo "1849"]
[Annotator "TA"]
[PlyCount "65"]
[EventDate "2022.09.28"]
[EventType "team-tourn"]
[EventRounds "7"]
[EventCountry "GER"]
[SourceTitle "playchess.com"]
[Source "ChessBase"]
[SourceQuality "1"]
[TimeControl "40/5400+30:1800+30"]

{[%evp 19,65,34,29,43,36,43,45,31,52,20,11,18,10,-11,0,0,0,8,6,-8,48,-11,-7,0,0,-30,-31,-14,-28,-29,10,0,173,165,788,785,777,771,686,276,266,273,273,275,390,383,637,622]} 1. e4 {[%emt 0:01:00]} c5 {[%emt 0:00:09]} 2. Nf3 {[%emt 0:00:25]} d6 {[%emt 0:00:06]} 3. d4 {[%emt 0:00:26]} cxd4 {[%emt 0:00:04]} 4. Nxd4 {[%emt 0:00:17]} Nf6 {[%emt 0:00:07]} 5. Nc3 {[%emt 0:00:38]} Nc6 {[%emt 0:00:02]} 6. g3 {[%emt 0:00:45]} e5 {[%emt 0:07:42]} 7. Nde2 {[%emt 0:00:54]} Be7 8. Bg2 {[%emt 0:00:57]} O-O {[%emt 0:09:47]} 9. O-O {[%emt 0:04:16]} Bg4 {[%emt 0:15:29]} 10. h3 {[%emt 0:08:17]} Be6 {[%emt 0:00:35]} 11. Nd5 {[%emt 0:04:31] B56: Classical Sicilian: Unusual Lines.} Bxd5 {[%emt 0:18:06]} 12. exd5 {[%emt 0:00:16] [#]} Nb8 $146 {[%emt 0:00:13]} ({Predecessor:} 12... Nb4 13. c4 Rc8 14. Bd2 Na6 15. Rc1 Nd7 16. g4 Bg5 17. Ng3 Bxd2 18. Qxd2 Nc7 {0-1 (39) Poetzschmann,R-Puls,G DDR 1979}) 13. b3 {[%emt 0:10:21] White is slightly better.} Nbd7 {[%emt 0:00:33]} 14. Bb2 {[%emt 0:05:15]} b5 {[%emt 0:03:08]} 15. a4 {[%emt 0:07:40]} b4 {[%emt 0:04:36]} 16. Qd2 {[%emt 0:09:27]} a5 {[%emt 0:00:12]} 17. f4 {[%emt 0:08:26]} Qb6+ {[%emt 0:07:31]} 18. Kh1 {[%emt 0:01:15]} Rac8 {[%emt 0:01:41]} 19. Rab1 {[%emt 0:04:20]} Rfe8 {[%emt 0:11:16]} (19... h5 $11) 20. c4 {[%emt 0:02:47]} (20. g4 $1 $14) 20... bxc3 $11 {[%emt 0:06:06]} 21. Bxc3 {[%emt 0:01:20]} Bd8 {[%emt 0:01:40]} 22. b4 {[%emt 0:06:29][%cal Rb4a5] Prevents Nc5.} axb4 {[%emt 0:01:03]} 23. Bxb4 {[%emt 0:00:58]} Qa6 {[%emt 0:00:30]} 24. fxe5 {[%emt 0:03:22]} Rxe5 {[%emt 0:01:58]} 25. Nd4 {[%emt 0:03:18]} Nxd5 $2 {[%emt 0:09:15] [#]} (25... Nb6 $11 {and Black has nothing to worry.}) 26. Nf3 $1 $18 {[%emt 0:02:21]} ({And not} 26. Qf2 N7f6 27. Nb5 Ne3 28. Bxd6 Re6 $17) 26... Ne3 $2 {[%emt 0:00:55]} (26... Rf5) 27. Nxe5 {[%emt 0:01:10][%mdl 64] Pin, Discovered Attack} Nxf1 {[%emt 0:00:40]} 28. Bxf1 {[%emt 0:00:28] This bishop pair is nice.} ({Less strong is} 28. Rxf1 Nxe5 29. Qxd6 Qxd6 30. Bxd6 Nc4 $16) 28... Qxa4 {[%emt 0:00:28]} 29. Nxd7 {[%emt 0:01:30]} (29. Qxd6 $142 Bc7 30. Qxd7 Qxd7 31. Nxd7 Bxg3 32. Kg2) 29... Qxd7 {[%emt 0:00:34]} 30. Qxd6 {[%emt 0:00:25]} Qxd6 {[%emt 0:00:31]} 31. Bxd6 {[%emt 0:00:07]} g5 {[%emt 0:00:18]} (31... Bf6 $142 32. Kg2 h5) 32. g4 {[%emt 0:01:42]} Bc7 $2 {[%emt 0:00:32] [#]} (32... Rc6 33. Bb4 h6) 33. Rc1 {[%emt 0:00:11] Weighted Error Value: White=0.43/Black=0.36} 1-0

[Event "Germany Countries-chT Youth 2022"]
[Site "Wiesbaden"]
[Date "2022.10.02"]
[Round "3"]
[White "Post, Hugo"]
[Black "Faerber, David"]
[Result "1/2-1/2"]
[ECO "B12"]
[WhiteElo "2176"]
[BlackElo "2354"]
[Annotator "TA"]
[PlyCount "84"]
[EventDate "2022.09.28"]
[EventType "team-tourn"]
[EventRounds "7"]
[EventCountry "GER"]
[SourceTitle "playchess.com"]
[Source "ChessBase"]
[SourceQuality "1"]
[TimeControl "40/5400+30:1800+30"]

{[%evp 9,84,16,13,7,9,10,10,0,16,12,6,-11,-3,-15,-10,-34,-7,-93,-91,-75,-72,-109,-106,-105,-38,-40,0,0,0,0,0,0,0,-38,0,-4,-4,-29,-17,-17,-15,-20,-16,-22,-17,-21,-15,-91,-21,-29,-12,-17,-10,-10,0,-3,16,0,0,0,0,0,0,0,0,0,0,0,0,0,0,0,0,0,0,0,18]} 1. e4 {[%emt 0:00:03]} c6 {[%emt 0:00:19]} 2. d4 {[%emt 0:00:17]} d5 {[%emt 0:00:08]} 3. e5 {[%emt 0:00:05]} Bf5 {[%emt 0:00:42]} 4. h4 {[%emt 0:00:22]} h5 {[%emt 0:01:03]} 5. Bd3 {[%emt 0:00:05]} Bxd3 {[%emt 0:00:11]} 6. Qxd3 {[%emt 0:00:07][%cal Oe5e6] B12: Caro-Kann: Advance Variation.} Qa5+ {[%emt 0:00:15]} 7. Nd2 {[%emt 0:00:08][%cal Oe5e6]} e6 {[%emt 0:00:10]} 8. Ngf3 {[%emt 0:00:44]} Nh6 {[%emt 0:00:11]} 9. O-O {[%emt 0:01:28]} Nf5 {[%emt 0:00:08]} 10. c4 {[%emt 0:02:40]} Be7 {[%emt 0:00:08]} 11. g3 {[%emt 0:00:12]} O-O {[%emt 0:00:09] [#]} 12. Re1 $146 {[%emt 0:04:20]} ({Predecessor:} 12. b3 Rd8 13. Bb2 c5 14. Qe2 Nc6 15. dxc5 Bxc5 16. Kg2 Bd4 17. Rfb1 Bxb2 18. Rxb2 {½-½ (32) Zhao,Z (2529)-Le,Q (2713) Changsha 2019}) 12... Rd8 {[%emt 0:04:27]} 13. b3 {[%emt 0:08:46] [#]} (13. c5 $11) 13... c5 $1 $17 {[%emt 0:03:15]} 14. dxc5 {[%emt 0:43:38]} Bxc5 {[%emt 0:03:31]} 15. Nf1 {[%emt 0:04:31]} Nc6 {[%emt 0:09:42] And now ...dxc4 would win.} 16. Bg5 {[%emt 0:02:55]} Be7 {[%emt 0:09:12]} (16... Rd7 $17 17. cxd5 Rxd5) 17. Ne3 {[%emt 0:01:10]} Nxe3 {[%emt 0:02:40]} 18. Qxe3 {[%emt 0:01:11]} dxc4 {[%emt 0:02:20]} 19. bxc4 {[%emt 0:00:30]} Qc7 {[%emt 0:00:52]} 20. Rab1 {[%emt 0:00:56]} Rac8 {[%emt 0:01:06]} 21. Qe2 {[%emt 0:04:12]} Nd4 {[%emt 0:08:13]} 22. Nxd4 {[%emt 0:00:06]} Rxd4 {[%emt 0:00:08]} 23. Qb2 {[%emt 0:09:48]} Rd7 {[%emt 0:04:24]} 24. Bxe7 {[%emt 0:01:13]} Rxe7 {[%emt 0:00:07]} 25. Re4 {[%emt 0:01:42]} Rd7 {[%emt 0:04:46]} 26. Qe2 $1 {[%emt 0:00:18]} Qa5 {[%emt 0:01:29]} 27. Qxh5 {[%emt 0:03:33]} Qxa2 {[%emt 0:00:17]} 28. Rc1 {[%emt 0:00:34] [#]} (28. Rd1 $1 $11 {keeps the balance.} Rcd8 29. Rxd7 Rxd7 30. Qf3) 28... Qd2 {[%emt 0:03:39]} (28... b5 $1 $17 {[%cal Rb5b4] Strongly threatening ...b4.} 29. Qg5 Rxc4 30. Rexc4 bxc4) 29. Rf1 {[%emt 0:05:12]} Qd3 {[%emt 0:08:01]} 30. Qg4 {[%emt 0:00:17] The position is equal.} Rcd8 {[%emt 0:03:23]} 31. h5 {[%emt 0:00:55]} Qd2 {[%emt 0:01:02]} 32. Rf4 {[%emt 0:00:19] aiming for h6.} Qc2 {[%emt 0:00:49]} 33. h6 {[%emt 0:01:02][%csl Gh6][%cal Rg4g7]} Qg6 {[%emt 0:00:28]} 34. Qxg6 {[%emt 0:01:50]} fxg6 {[%emt 0:00:05]} 35. hxg7 {[%emt 0:00:17]} Kxg7 $11 {[%emt 0:00:17][%mdl 4096] Endgame KRR-KRR} 36. Ra1 {[%emt 0:00:36]} Rd1+ {[%emt 0:02:39]} 37. Rxd1 {[%emt 0:00:01]} Rxd1+ {[%emt 0:00:05] KR-KR} 38. Kg2 {[%emt 0:00:00]} Re1 {[%emt 0:00:09]} 39. Rd4 {[%emt 0:00:13]} Rxe5 {[%emt 0:00:36]} 40. Rd7+ {[%emt 0:00:04]} Kf6 {[%emt 0:00:06]} 41. Rxb7 {[%emt 0:30:02]} Rc5 {[%emt 0:31:30]} 42. Rxa7 {[%emt 0:00:22]} Ke5 {Weighted Error Value: White=0.15 (very precise) /Black=0.12 (very precise)} 1/2-1/2

[Event "Germany Countries-chT Youth 2022"]
[Site "Wiesbaden"]
[Date "2022.10.02"]
[Round "3"]
[White "Jeschke, Jan"]
[Black "Wong, Gengchun"]
[Result "0-1"]
[ECO "C45"]
[WhiteElo "2146"]
[BlackElo "2195"]
[Annotator "TA"]
[PlyCount "68"]
[EventDate "2022.09.28"]
[EventType "team-tourn"]
[EventRounds "7"]
[EventCountry "GER"]
[SourceTitle "playchess.com"]
[Source "ChessBase"]
[SourceQuality "1"]
[TimeControl "40/5400+30:1800+30"]

{[%evp 14,68,-8,-17,-8,-41,0,0,20,18,31,-16,29,19,28,14,26,-10,-14,-17,-10,-17,-10,-52,-54,-85,-83,-77,-71,-70,-32,-61,-53,-73,0,0,0,-104,-96,-92,-87,-86,-74,-106,-120,-309,-286,-689,-689,-1047,-838,-29981,-29982,-29982,-29983,-29981,-29982]} 1. e4 {[%emt 0:00:05]} e5 {[%emt 0:00:03]} 2. Nf3 {[%emt 0:00:22]} Nc6 {[%emt 0:00:05]} 3. d4 {[%emt 0:00:50]} exd4 {[%emt 0:00:05]} 4. Nxd4 {[%emt 0:00:11]} Nf6 {[%emt 0:00:08]} 5. Nxc6 {[%emt 0:04:37]} bxc6 {[%emt 0:01:07]} 6. e5 {[%emt 0:00:08]} Qe7 {[%emt 0:00:03]} 7. Qe2 {[%emt 0:00:04]} Nd5 {[%emt 0:00:03]} 8. h4 {[%emt 0:00:06]} (8. c4 $5 {[%cal Rc4d5]} Nb6 9. b3 $11) 8... Qe6 {[%emt 0:00:09] C45: Scotch Game.} 9. h5 {[%emt 0:03:08]} a5 {[%emt 0:03:46]} 10. h6 $1 {[%emt 0:02:17]} gxh6 {[%emt 0:00:48] The position is equal.} 11. c4 {[%emt 0:06:08]} Nb6 {[%emt 0:00:17]} (11... Bb4+ {seems wilder.} 12. Nd2 Nf4 13. Qe3 Ng6) 12. Nd2 {[%emt 0:00:43]} (12. Bf4 $14) 12... Ba6 {[%emt 0:03:38]} 13. b3 {[%emt 0:01:55] [#]} Bg7 $146 {[%emt 0:11:07]} ({Predecessor:} 13... O-O-O 14. Bb2 Bg7 15. O-O-O Rhe8 16. f4 f6 17. Ne4 fxe5 18. Nc5 Qf5 19. Nxa6 exf4 {1-0 (45) Nepomniachtchi,I (2784)-Giri,A (2764) chess24.com INT 2020}) 14. Bb2 {[%emt 0:07:11] With the idea Ne4.} d5 {[%emt 0:04:33] Against Ne4} 15. cxd5 {[%emt 0:02:22]} cxd5 {[%emt 0:01:11]} 16. Qe3 {[%emt 0:00:55]} Bxf1 {[%emt 0:00:14]} 17. Kxf1 {[%emt 0:01:14]} O-O {[%emt 0:13:06]} 18. Nf3 {[%emt 0:09:07]} Nd7 {[%emt 0:01:31]} 19. Re1 {[%emt 0:06:27]} c5 {[%emt 0:01:32] Inhibits Nd4.} 20. Rh3 {[%emt 0:03:32]} d4 {[%emt 0:08:09]} 21. Qe4 {[%emt 0:09:42]} Rae8 {[%emt 0:01:25]} 22. Rg3 {[%emt 0:18:10]} Kh8 {[%emt 0:02:26]} 23. Bc1 {[%emt 0:08:29]} f6 {[%emt 0:20:45]} ({Of course not} 23... Nxe5 24. Rxg7 Qa6+ 25. Re2 $11) ({Black should play} 23... a4 $17 24. Qg4 Rg8) 24. exf6 $11 {[%emt 0:09:14]} Qa6+ {[%emt 0:00:09]} 25. Kg1 {[%emt 0:00:03]} (25. Qe2 $1 $11 {remains equal.} Rxf6 26. Qxa6 Rxe1+ 27. Nxe1 Rxa6 28. Nd3) 25... Nxf6 $17 {[%emt 0:00:07] Chess con chili.} 26. Qc2 {[%emt 0:03:04]} Rxe1+ {[%emt 0:00:59]} 27. Nxe1 {[%emt 0:00:02]} Re8 $36 {[%emt 0:06:02][%mdl 2048] Black is really pushing.} 28. Nd3 {[%emt 0:00:46] [#]} Ne4 {[%emt 0:00:49]} 29. Rxg7 {[%emt 0:02:43] White does not recover from this.} Kxg7 $19 {[%emt 0:00:34]} 30. Nxc5 $2 {[%emt 0:00:11]} (30. Bd2) 30... Qc8 {[%emt 0:07:35]} 31. Bb2 {[%emt 0:00:36][%cal Oc2d1]} Nc3 {[%emt 0:00:43] Against Qd1} 32. Nd3 {[%emt 0:01:36] Against Re1+} Ne2+ {[%emt 0:00:09] Black mates.} 33. Qxe2 {[%emt 0:00:07]} Rxe2 {[%emt 0:00:05]} 34. Bxd4+ {[%emt 0:00:04]} Kg8 {[%emt 0:00:11] Weighted Error Value: White=0.70/Black=0.11 (very precise)} 0-1

[Event "Germany Countries-chT Youth 2022"]
[Site "Wiesbaden"]
[Date "2022.10.02"]
[Round "3"]
[White "Geltz, Noah"]
[Black "Musiolik, David"]
[Result "1/2-1/2"]
[ECO "B10"]
[WhiteElo "2142"]
[BlackElo "2252"]
[Annotator "TA"]
[PlyCount "46"]
[EventDate "2022.09.28"]
[EventType "team-tourn"]
[EventRounds "7"]
[EventCountry "GER"]
[SourceTitle "playchess.com"]
[Source "ChessBase"]
[SourceQuality "1"]
[TimeControl "40/5400+30:1800+30"]

{[%evp 9,46,0,14,15,3,-4,58,19,61,54,64,68,53,69,97,83,87,86,85,87,107,73,69,65,91,59,57,57,57,47,63,0,45,0,0,0,0,0,0]} 1. e4 {[%emt 0:00:03]} c6 {[%emt 0:00:12]} 2. Nf3 {[%emt 0:00:12][%cal Bg1f3,Bf3d2,Bd2c4][%mdl 32]} d5 {[%emt 0:00:19]} 3. d3 {[%emt 0:00:13]} dxe4 {[%emt 0:06:52]} 4. dxe4 {[%emt 0:00:08]} Qxd1+ {[%emt 0:00:04]} 5. Kxd1 {[%emt 0:00:07]} Nf6 {[%emt 0:00:15]} 6. Nfd2 {[%emt 0:00:32] B10: Caro-Kann: 2 d3 and 2 c4.} g5 {[%emt 0:00:38]} 7. a4 {[%emt 0:04:42]} a5 {[%emt 0:13:01] [#]} (7... g4 $11) 8. Nc3 $146 {[%emt 0:15:44] White is slightly better.} (8. f3 $5 {[%cal Rd2c4]}) ({Predecessor:} 8. c3 Be6 9. f3 Nbd7 10. Bc4 Bxc4 11. Nxc4 g4 12. Bf4 gxf3 13. gxf3 Rg8 14. Nbd2 {1-0 (60) Pichot,A (2630)-Blomqvist,E (2535) Chess.com INT 2021}) 8... Nbd7 {[%emt 0:10:39]} 9. Nc4 {[%emt 0:03:03]} Ng4 {[%emt 0:01:38]} 10. Ke1 {[%emt 0:01:34]} h6 {[%emt 0:01:35]} 11. h4 {[%emt 0:02:33]} Rg8 {[%emt 0:00:56]} 12. hxg5 {[%emt 0:10:44]} hxg5 {[%emt 0:00:06]} 13. Rh5 {[%emt 0:00:22]} f6 {[%emt 0:00:59]} 14. Nd1 {[%emt 0:03:50] White is more active.} e6 {[%emt 0:10:19]} 15. f3 {[%emt 0:05:03]} Nge5 {[%emt 0:01:43]} 16. Bd2 {[%emt 0:02:12]} b6 {[%emt 0:08:15]} 17. Nde3 {[%emt 0:07:41]} Kf7 {[%emt 0:03:31]} 18. Rd1 {[%emt 0:06:03]} Kg6 {[%emt 0:12:39]} 19. Rh3 {[%emt 0:01:18]} Bc5 {[%emt 0:03:27]} 20. Bc3 {[%emt 0:03:41]} (20. b3 $14) 20... b5 {[%emt 0:04:41]} 21. axb5 {[%emt 0:03:49] Dancing on a razor blade.} cxb5 {[%emt 0:11:23] The position is equal.} 22. Nxe5+ {[%emt 0:01:07]} Nxe5 {[%emt 0:00:04]} 23. Bd4 {[%emt 0:00:52]} Bxd4 {[%emt 0:01:43] Weighted Error Value: White=0.14 (very precise) /Black=0.19 (very precise)} 1/2-1/2